Cogmind - Beta 16 @@@ ROGUE MODE // 2025.11.20 @ 19:12:10 Player: Mozco Result: Self-destructed Performance ------------- Evolutions (1) 500 Regions Visited (3) 600 Robots Destroyed (103) 515 Value Destroyed (2412) 2412 Prototype IDs (7) 140 Alien Tech Used (0) 0 Bonus (577) 577 TOTAL SCORE: 4744 Bonus ------- High Alert Combat Kills 500 Follower Combat Kills 174 Friendly Fire -97 Cogmind --------- Core Integrity 148/400 Matter 257/300 Energy 280/280 System Corruption 7% Temperature Critical (504) Movement Treading (320) Ox2 Location -9/Storage Parts ------- > --- POWER (1) -------- Cooled Ion Engine > --- PROPULSION (3) --- Light Treads Light Treads Light Treads > --- UTILITY (3) ------ High-capacity Storage Unit Hardened Light Armor Plating > --- WEAPON (2) ------- Advanced Beam Cannon > --- INVENTORY (20) --- Cold Fusion Reactor Improved Treads Improved Treads Improved Treads Structural Scanner Propulsion Shielding Hacking Suite Hacking Suite Tractor Beam Drone Bay (2/2) Advanced Beam Cannon Advanced Beam Cannon Mini Grenade Launcher Mini Grenade Launcher Mini Grenade Launcher Mini Grenade Launcher Mini Grenade Launcher Mini Grenade Launcher Peak State ------------ > --- POWER ------------ Cold Fusion Reactor > --- PROPULSION ------- Light Treads Light Treads Light Treads > --- UTILITY ---------- High-capacity Storage Unit Structural Scanner Hacking Suite > --- WEAPON ----------- Advanced Beam Cannon Mini Grenade Launcher > --- INVENTORY -------- Cooled Ion Engine Light Treads Light Treads Light Treads Light Treads Heat Sink Light Armor Plating Light Armor Plating Hardened Light Armor Plating Hacking Suite EM Pulse Gun Advanced Beam Cannon Advanced Beam Cannon Advanced Beam Cannon Mini Grenade Launcher Mini Grenade Launcher Mini Grenade Launcher Mini Grenade Launcher Mini Grenade Launcher Mini Grenade Launcher [Rating: 22] Favorites ----------- Power Cooled Ion Engine Engine Cooled Ion Engine Reactor Cold Fusion Reactor Propulsion Light Treads Treads Light Treads Utility High-capacity Storage Unit Device Structural Scanner Storage High-capacity Storage Unit Hackware Hacking Suite Protection Propulsion Shielding Weapon Mini Grenade Launcher Energy Gun EM Pulse Gun Energy Cannon Advanced Beam Cannon Ballistic Gun Improved Assault Rifle Launcher Mini Grenade Launcher Build | -11 -10 -9 -9 ------- Run | Yrd Mat Mat Sto Slots Evolved 2 | . . 2 . Power . | . . . . Propulsion 1 | . . 1 . Utility 1 | . . 1 . Weapon . | . . . . Parts Attached 43 | 5 5 11 22 Power 7 | 1 . 4 2 Engine 6 | 1 . 4 1 Core . | . . . . Reactor 1 | . . . 1 Propulsion 10 | 1 1 2 6 Treads 10 | 1 1 2 6 Leg . | . . . . Wheel . | . . . . Hover . | . . . . Flight . | . . . . Utility 10 | 1 3 1 5 Device 1 | . 1 . . Storage 3 | 1 2 . . Processor . | . . . . Hackware 1 | . . 1 . Protection 5 | . . . 5 Artifact . | . . . . Weapon 16 | 2 1 4 9 Energy Gun 6 | 2 . . 4 Energy Cannon 5 | . . 3 2 Ballistic Gun 1 | . . . 1 Ballistic Cannon . | . . . . Launcher 4 | . 1 1 2 Special Weapon . | . . . . Impact Weapon . | . . . . Slashing Weapon . | . . . . Piercing Weapon . | . . . . Special Melee Weapon . | . . . . Unidentified Prototypes 7 | . . 3 4 Parts Lost 4 | . . . 4 Power . | . . . . Propulsion 1 | . . . 1 Utility 2 | . . . 2 Weapon 1 | . . . 1 Highest Loss Streak 4 | . . . 4 To Critical Strikes . | . . . . Average Backups 17 | 1 4 13 19 Power 1 | . 1 2 1 Propulsion 3 | . . 1 3 Utility 5 | . 1 2 6 Weapon 7 | . 1 7 8 Tool/Special . | . . . . Unused Backups 26 | . . 5 21 Power 5 | . . 3 2 Propulsion 6 | . . . 6 Utility 8 | . . 1 7 Weapon 7 | . . 1 6 Tool/Special . | . . . . Average Slot Usage (%) 98 | . 92 91 99 Engine 11 | . 14 11 11 Treads 31 | . 24 28 32 Device 3 | . 8 11 1 Storage 11 | . 15 11 11 Hackware 3 | . . 10 3 Protection 13 | . . . 17 Energy Gun 2 | . 17 5 . Energy Cannon 9 | . . 3 11 Launcher 10 | . 10 9 10 Peak Build Rating 22 | 5 7 19 22 Average Rating 17 | 4 6 13 19 On Entrance 7 | . 5 7 19 Avg Prop Armor Cover (%) . | . . . . Naked Turns . | . . . . Heaviest Build 62 | 12 49 56 62 Greatest Support 60 | 20 40 60 60 Greatest Overweight (x) 2 | . 1 2 1 Average Overweight (x) . | . . . . Largest Inventory Capacity 20 | 8 20 20 20 Average Capacity 19 | 7 16 20 20 Most Carried 20 | 3 6 20 20 Average Carried 17 | 1 4 13 19 Final Capacity 20 | 8 20 20 20 Final Carried 20 | 3 6 20 18 Class Distribution -------------------- 73% | Mutant 15% | Commander-Mutant 10% | Scavenger-Mutant Dominant Class ---------------- Mutant | -10/Materials Mutant | -9/Materials Mutant | -9/Storage Resources | -11 -10 -9 -9 ----------- Run | Yrd Mat Mat Sto Matter Collected 1350 | 167 133 256 794 Remotely . | . . . . Salvage Created 3157 | . 46 793 2318 Parts 203 | . 4 58 141 Haulers Intercepted 10 | . . 4 6 Recyclers Shooed 4 | . . . 4 Parts Field Recycled . | . . . . Retrieved Matter . | . . . . Parts Self-Destructed . | . . . . Prevented . | . . . . Parts Restored . | . . . . Kills | -11 -10 -9 -9 ------- Run | Yrd Mat Mat Sto Combat Hostiles Destroyed 57 | . . 14 43 Cannons 11 | . . 2 9 AOE 45 | . . 12 33 Classes Destroyed 13 | . 2 7 4 Worker 4 | . . . 4 Builder 10 | . . 3 7 Tunneler 1 | . . 1 . Hauler 10 | . . 4 6 Recycler 8 | . . 2 6 Mechanic 1 | . . . 1 Operator 5 | . 1 . 4 Watcher 3 | . 1 1 1 Swarmer 4 | . . 4 . Grunt 44 | . . 7 37 Brawler 2 | . . . 2 Protector 1 | . . . 1 Sentry 10 | . . 3 7 Best Kill Streak 10 | . 1 7 10 Combat Bots Only 10 | . . 4 10 Max Kills in Single Turn 4 | . 1 3 4 Gunslinging . | . . . . Exploded 4 | . . 2 4 Melee . | . . . . Uniques/NPCs Destroyed . | . . . . Combat | -11 -10 -9 -9 -------- Run | Yrd Mat Mat Sto Hostile Shots Fired 141 | . . 24 117 Missed 33 | . . 6 27 Hits 108 | . . 18 90 Melee 1 | . . . 1 Projectile 107 | . . 18 89 Critical Strikes 6 | . . 2 4 Actively Blocked 1 | . . . 1 Part Disruptions 4 | . . . 4 Actively Blocked 1 | . . . 1 Damage Taken 1900 | . 31 270 1599 Core 252 | . . 54 198 Absorbed by Shields . | . . . . Redirected to Shielding 93 | . . . 93 Regen/Repaired (Parts) 160 | . . 31 129 Core Remaining (%) 100 | 100 100 . . Volleys Fired 191 | . 4 30 157 Largest 2 | . 2 2 2 Hottest 136 | . 90 100 136 Shots Fired 203 | . 6 36 161 Gun 23 | . 6 14 3 Cannon 120 | . . 9 111 Launcher 60 | . . 13 47 Special . | . . . . Kinetic . | . . . . Thermal 125 | . 2 9 114 Explosive 60 | . . 13 47 Electromagnetic 18 | . 4 14 . Robot Hit Streak 16 | . 2 16 8 Robot Miss Streak 4 | . 4 1 4 Penetration Max . | . . . . Secondary Targets . | . . . . Shots Hit Robots 107 | . 2 24 81 Core Hits 141 | . 2 27 112 Critical Kills 2 | . . 1 1 Critical Parts Destroyed . | . . . . Critical Strikes 2 | . . 1 1 Meltdown 2 | . . 1 1 Melee Attacks . | . . . . Impact . | . . . . Slashing . | . . . . Piercing . | . . . . Sneak Attacks . | . . . . Combat Hostiles . | . . . . Follow-up Attacks . | . . . . Damage Inflicted 6359 | . 72 1327 4960 Guns 206 | . 38 156 12 Cannons 1379 | . . 152 1227 Explosions 4770 | . 34 1019 3717 Melee . | . . . . Ramming 4 | . . . 4 Kinetic . | . . . . Thermal 1524 | . 34 251 1239 Explosive 4637 | . . 920 3717 Electromagnetic 194 | . 38 156 . Impact . | . . . . Slashing . | . . . . Piercing . | . . . . Highest Corruption 7 | . . . 7 Average Corruption 1 | . . . 1 Corruption Purged . | . . . . Corruption Blocked . | . . . . Effects 29 | . . . 29 Message Errors 8 | . . . 8 Matter Fused 13 | . . . 13 Heat Flow Errors 2 | . . . 2 Energy Discharges 1 | . . . 1 Data Loss (minor) 2 | . . . 2 Data Loss (major) 1 | . . . 1 Misfires 1 | . . . 1 Weapon Failures 1 | . . . 1 Overload Shots . | . . . . Overflow Damage 87 | . . 24 63 Projectiles 15 | . . . 15 Explosions 72 | . . 24 48 Melee . | . . . . Knockbacks . | . . . . Impact . | . . . . Kinetic . | . . . . Secondary . | . . . . Self-Inflicted Damage 219 | . 31 66 122 Shots 8 | . 1 2 5 Rammed 1 | . . 1 . Targets Rammed 2 | . . 1 1 Kicked . | . . . . Crushed 1 | . . . 1 Highest Temperature 504 | . 60 153 504 Average Temperature 67 | . 27 34 75 Received Heat Transfer 432 | . . 84 348 Siege Activations . | . . . . Martial Activations . | . . . . Shielding Activations . | . . . . Robots Disrupted . | . . . . Combat Hostiles . | . . . . Robots Corrupted 1 | . . 1 . Combat Hostiles . | . . . . Parts Fried 1 | . . 1 . Impact Corruptions . | . . . . Robots Melted 2 | . . 1 1 Combat Hostiles 1 | . . . 1 Parts Melted 8 | . . 2 6 Heat Transferred 2938 | . 50 446 2442 Parts Sabotaged . | . . . . Parts Stolen . | . . . . Parts Stripped . | . . . . Power Chain Reactions 2 | . 1 1 . Alert | -11 -10 -9 -9 ------- Run | Yrd Mat Mat Sto Maximum Alert Level 4 | . . 1 4 Low Security (%) 17 | 100 100 63 1 Level 1 14 | . . 36 12 Level 2 4 | . . . 5 Level 3 32 | . . . 41 Level 4 31 | . . . 40 Level 5 . | . . . . High Security . | . . . . Max Security . | . . . . Peak Influence 1263 | . 16 356 1263 Initial 16 | . . . 16 Average 726 | . 1 138 905 Influence Increases 2826 | . 21 552 2253 Destroy 0b10 Robot/C 1240 | . . 280 960 Destroy 0b10 Robot/NC 215 | . 10 55 150 Destroy Leader 356 | . 2 80 274 Allied During Kill 111 | . . . 111 Successful Hack 37 | . . 4 33 Select Force Hacks 30 | . . . 30 Disable Machine 195 | . . 30 165 Anti-Garrison Action 200 | . . . 200 Destroy Structure 442 | . 9 103 330 Influence Decreases 1605 | . 21 512 1072 Entered New Map 24 | . . . 24 Time Decay 971 | . 21 212 738 Lost Part 40 | . . . 40 Lost Ally 120 | . . . 120 Purge Threat 450 | . . 300 150 Squads Dispatched 22 | . . 1 21 Investigation 11 | . . . 11 Extermination . | . . . . Reinforcement 7 | . . 1 6 Assault 4 | . . . 4 Garrison . | . . . . Intercept . | . . . . Searches Triggered . | . . . . Construction Impeded 3 | . . . 3 Haulers Reinforced . | . . . . Active Scanning Responses . | . . . . Cargo Convoy Interrupts . | . . . . Stealth | -11 -10 -9 -9 --------- Run | Yrd Mat Mat Sto Distress Signals 1 | . . . 1 Communications Jammed . | . . . . Distress Signals . | . . . . Times Spotted 103 | . 3 19 81 Peak Tracking Total 6 | . 1 4 6 Tactical Retreats . | . . . . Traps | -11 -10 -9 -9 ------- Run | Yrd Mat Mat Sto Traps Triggered . | . . . . Indirectly . | . . . . Trap Hack Attempts . | . . . . Triggered . | . . . . Disarmed . | . . . . Reprogrammed . | . . . . Reused . | . . . . Traps Extracted . | . . . . Installed . | . . . . Triggered . | . . . . Machines | -11 -10 -9 -9 ---------- Run | Yrd Mat Mat Sto Machines Disabled 14 | . . 3 11 Max in Single Turn 2 | . . 1 2 Garrison Access 1 | . . . 1 Machines Repaired . | . . . . Machines Dismantled . | . . . . Machines Sabotaged . | . . . . Overloaded Fab Kills . | . . . . Hacking | -11 -10 -9 -9 --------- Run | Yrd Mat Mat Sto Machines Accessed 19 | . . 5 14 Terminals 12 | . . 3 9 Fabricators . | . . . . Repair Stations 3 | . . 1 2 Recycling Units 2 | . . . 2 Scanalyzers 1 | . . 1 . Garrison Access 1 | . . . 1 Total Hacks 66 | . . 19 47 Successful 38 | . . 15 23 Failed 27 | . . 3 24 Catastrophic 3 | . . . 3 Database Lockouts 1 | . . 1 . Manual 34 | . . 7 27 Terminals 38 | . . 10 28 Fabricators . | . . . . Repair Stations 11 | . . 2 9 Recycling Units 7 | . . . 7 Scanalyzers 7 | . . 7 . Garrison Access 3 | . . . 3 Terminal Hacks 14 | . . 4 10 Part Schematic 3 | . . 1 2 Robot Analysis 2 | . . 1 1 Open Door 3 | . . . 3 Alert Level 1 | . . . 1 Unreport Threat 3 | . . 2 1 Locate Traps 1 | . . . 1 Zone Layout 1 | . . . 1 Fabricator Hacks . | . . . . Repair Station Hacks 9 | . . 2 7 Scan Component 6 | . . 1 5 Repair 3 | . . 1 2 Recycling Unit Hacks 4 | . . . 4 Process 1 | . . . 1 Report Inventory 2 | . . . 2 Retrieve Matter 1 | . . . 1 Scanalyzer 7 | . . 7 . Insert Component 3 | . . 3 . Analyze 4 | . . 4 . Garrison Access Hacks . | . . . . Unauthorized Hacks 4 | . . 2 2 Terminals 2 | . . 2 . Botnet 2 | . . 2 . Fabricators . | . . . . Repair Stations . | . . . . Recycling Units 1 | . . . 1 Tunnel 1 | . . . 1 Scanalyzers . | . . . . Garrison Access 1 | . . . 1 Jam 1 | . . . 1 Data Cores Recovered 2 | . 1 . 1 Used . | . . . . Hacking Detections 21 | . . 5 16 Full Trace Events 14 | . . 1 13 Feedback Events 1 | . . . 1 Corruption 1 | . . . 1 Feedback Blocked . | . . . . Robot Schematics Acquired . | . . . . Robots Built . | . . . . Authchips . | . . . . Time . | . . . . Total Robot Build Rating . | . . . . Part Schematics Acquired 6 | . . 4 2 Parts Built . | . . . . Authchips . | . . . . Time . | . . . . Total Part Build Rating . | . . . . Part Studies Acquired . | . . . . Parts Repaired 3 | . . 1 2 Time 78 | . . 26 52 Parts Recycled . | . . . . Recycled Matter 140 | . . . 140 Retrieved Matter 142 | . . . 142 Retrieved Components . | . . . . Parts Scanalyzed 3 | . . 3 . Part Schematics Acquired 3 | . . 3 . Parts Damaged . | . . . . Bothacking | -11 -10 -9 -9 ------------ Run | Yrd Mat Mat Sto Used RIF Installer . | . . . . Robots Hacked . | . . . . Non-combat . | . . . . Combat . | . . . . Robot Hacks Applied . | . . . . Relay Couplers Released . | . . . . Fabnet Peak Effective % . | . . . . Robots Rewired . | . . . . Allies Hacked . | . . . . Hacks Repelled . | . . . . Allies | -11 -10 -9 -9 -------- Run | Yrd Mat Mat Sto Total Allies 10 | . . . 10 Largest Group 10 | . . . 10 Highest-Rated Group 88 | . . . 88 Highest-Rated Ally 16 | . . . 16 Total Orders . | . . . . Ally Attacks 73 | . . . 73 Total Damage 600 | . . . 600 Kills 6 | . . . 6 Allies Corrupted . | . . . . Allies Melted . | . . . . Intel | -11 -10 -9 -9 ------- Run | Yrd Mat Mat Sto Active Infowar (turns) 1402 | . 190 674 538 Structural 1402 | . 190 674 538 Robot Analysis Total 2 | . . 1 1 Derelict Logs Recovered . | . . . . Drone Launches . | . . . . Drone Recoveries . | . . . . Exploration | -11 -10 -9 -9 ------------- Run | Yrd Mat Mat Sto Turns Passed 4798 | 83 297 674 3744 Spaces Moved 2012 | 49 137 289 1537 Core 4 | 4 . . . Treads 2008 | 45 137 289 1537 Legs . | . . . . Wheels . | . . . . Hover . | . . . . Flight . | . . . . Fastest Speed 50 | 50 160 160 160 Average Speed 207 | 151 203 181 214 Slowest Speed 320 | 160 240 320 240 Overloaded Moves . | . . . . Propulsion Burnouts . | . . . . Robots Hopped . | . . . . Potential Cave-ins . | . . . . Cave-ins Triggered . | . . . . Exploration Rate (%) 41 | 4 28 38 96 Regions Visited 3 Branch Regions 1 Pre-discovered Areas 1 | . . . 1 Known Exits Taken . | . . . . Unknown Exits Taken 3 | 1 1 1 . Scrap Searched . | . . . . Spaces Dug 33 | . . . 33 Terrain Destroyed 500 | . 8 113 379 Melee . | . . . . Projectile 2 | . . . 2 AOE 498 | . 8 113 377 Terrain Rammed . | . . . . Walls Destroyed . | . . . . Machines Disabled . | . . . . Actions | -11 -10 -9 -9 --------- Run | Yrd Mat Mat Sto Total 2435 | 56 149 403 1827 Wait 88 | . . 29 59 Move 2009 | 48 136 288 1537 Hop . | . . . . Pick Up 45 | 3 3 25 14 Fast Attach 24 | 5 2 4 13 Attach 7 | . 1 3 3 Detach 3 | . . 3 . Swap 21 | . 2 7 12 Drop 45 | . 1 13 31 Fire 191 | . 4 30 157 Melee . | . . . . Ram . | . . . . Kick . | . . . . Crush 2 | . . 1 1 Escape Stasis . | . . . . Rewire . | . . . . Trap . | . . . . Miscellaneous . | . . . . Route ------- -11/Scrapyard -10/Materials (discovered 2 exits: *Mat / [*Min]) -9/Materials (discovered 2 exits: [*Min] / *Sto) -9/Storage (discovered 2 exits: [*Mat] / [*Rec]) History --------- Turn | Location | Event 7 | -11/Scrapyard | Discovered new exit (range 16) 84 | -11/Scrapyard | Entered Materials 248 | -10/Materials | Discovered new exit (range 12) 248 | -10/Materials | Discovered new exit (range 12) 300 | -10/Materials | Build established: Mutant 381 | -10/Materials | Entered another Materials area 381 | -9/Materials | Evolved 2 slots: Propulsion x1, Utility x1 541 | -9/Materials | Repaired Lgt. Treads 804 | -9/Materials | Discovered new exit (range 16) 1002 | -9/Materials | Discovered new exit (range 9) 1045 | -9/Materials | Central database locked down 1055 | -9/Materials | Entered Storage 1130 | -9/Storage | Destroyed 7 combat bots 1515 | -9/Storage | Build established: Scavenger-Mutant 1622 | -9/Storage | Discovered new exit (range 8) 1734 | -9/Storage | Assisted by bots powering up and referring to "LRC-V3" 1916 | -9/Storage | Lost 3 allies 1921 | -9/Storage | Repaired Lgt. Treads 1949 | -9/Storage | Repaired Lgt. Treads 2038 | -9/Storage | Build established: Commander-Mutant 2655 | -9/Storage | First assault squad dispatched 2708 | -9/Storage | Destroyed 10 combat bots 2792 | -9/Storage | Build established: Mutant 2816 | -9/Storage | Met 01-MTF 3158 | -9/Storage | Discovered new exit (range 6) 4770 | -9/Storage | Core integrity fell below 50% 4799 | -9/Storage | Self-destructed Last Messages --------------- 04724_ G-34 Mercenary destroyed. 04735_ System corrupted: Matter fused (-9). 04737_ K-01 Serf collects debris. 04740_ Connecting with Door Terminal... 04740_ ALERT: Suspicious activity at Terminal S008. Dispatching Investigation squad. 04741_ K-01 Serf collects debris. 04753_ M#A#0HN 1Z6Z4BVHESKRWPQNUMQL 04761_ G-34 Mercenary destroyed. 04763_ 01-MTF: "How could you, we barely know each other!" 04763_ K-01 Serf collects debris. 04769_ Lgt. Treads destroyed. 04770_ K-01 Serf collects debris. 04773_ Med. Armor Plating destroyed. 04777_ K-01 Serf collects debris. 04780_ Propulsion Shielding destroyed. 04783_ System corrupted: Matter fused (-5). 04783_ K-01 Serf collects debris. 04798_ Adv. Beam Cannon destroyed. 04799_ K-01 Serf collects debris. Map ----- +----------------------------------------------------+ | ???????############/######%########### ### | | ???????########### ### | | ???????## + % ##? | | ???????## """ # % ##? | | ???????## """ # ###+##################? | | ???????## """ + % ##T ##################? | | ???????## # ### ##?????????????#### | | ???????## """ # ### ##???########### | | ???????## """ # ######???# | | ???????## """ # ######???# T | | ???????## # ##???????# | | ???????###"T"### # ##???????######+#### | | ???????########### ##????????# ![ ## | | ????????########## ##????????# """"" ## | | ?????????#! !?#### ##????????# """"" ## | | ?????????# !! #T## ##????????# """"" ## | | ?????????# " # ##????????# # | | ?????????#! + k##????????# "" # | | ?????????# ! " # ##????????# "" ## | | ?????????#!! # # ##????????# " # | | ??????############ ##????????# %=# | | ???###############= ##????????##### ##|# | | ???##### #%! ##???????????### !%# | | ???## "" #% ###????####### #### | | ???##"G [ = # ###????# ### # # | | ???## ""= % + @ ####???# #?### | | ???##### = # # ##???# T### | | ???##### # # ##???## ### ## | | ??????## # p%####???####+##### ##%! | | ??????## # ########### % % | | ??????############ %########### %% % | | ??????############ % % * %=% % % | | ?????????####??## % #######+####### | | ?????????#===?## =[ ##??# # ! % | | ?????????#=== # % % ##??### """ | | ?????????# " ! ! ##???## """ | | ?????????#== k !!! ##????# """ | | ?????????#== " %= !! ##????# | | ?????????#==!!# #?????# | | ?????????######### # ""T"" #????## | | ??????????######## # """"" #???# # | | ??????????# ###########??## % | | ??????????# < % # ##?????????# ####### | | ?????????## % #####????????### ##### | | ?????????#######+## #??????????###????? | | ?????????# % =%= #?????????????????? | | ?????????# " "" #????????????????? | | ?????????# "T "##????????????????? | | ?????????# " " " #????????????????? | | ?????????# "" #????????????????? | +----------------------------------------------------+ Best States ------------- Heat Dissipation 28 Energy Generation 14 Energy Capacity 280 Matter Stores 300 Matter Capacity 300 Sight Range 16 Terrain Scan Density 10 Armor Coverage 225 Propulsion Shielding 33 Evasion (%) 40 Recoil Reduction 3 Offensive Hacking 10 Item Schematics ----------------- Hacking Suite | -9/Materials | Scanalyzed EM Pulse Gun | -9/Materials | Scanalyzed Ion Engine | -9/Materials | Scanalyzed Huge Storage Unit | -9/Materials | Hacked Med. Treads | -9/Storage | Hacked Disposable Heat Sink | -9/Storage | Hacked Robot Schematics ------------------ None Fabricated ------------ Nothing Repaired ---------- Lgt. Treads | 77% | -9/Materials Lgt. Treads | 51% | -9/Storage Lgt. Treads | 56% | -9/Storage Studied --------- None Alien Tech Used ----------------- None Achievements -------------- None Challenges ------------ None Game ------ Seed BlastImpactDrillbomb Manual? 0 Play Time 00:32:40 Cumulative 311.3 hours Start 2025.11.20 @ 18:13:42 End 2025.11.20 @ 19:12:10 Sessions 1 Manual Loads 0 Difficulty Rogue Special Mode None Game No. 324 Rogue 320 Adventurer 3 Explorer 1 Win Type - Total 2 Types 2/0/0/0/0/0/0/0/0/0 Lore% 80 Gallery% 77 Achievement% 63 Wizard Run 0 Options --------- Layout 0 ASCII 0 Keyboard 0 Movement Mouse Keybinds 0 Fullscreen 2 Font 18/SmallcapsGlow Map View 76x50 Zoom Use 0% Tactical HUD 1 Map Filters NONE Filters NONE Steam 1 RUN: 966a4467-eed1-444e-9dd7-c142c8ccd372